bitfinex/quotes_SOLUSD_20251223
["timestamp","ask_amount","ask_price","bid_price","bid_amount"]
[1766512535018,8.10766985,123.34,123.3,8.45809407]
[1766512535808,15.87576392,123.34,123.3,0.69]
[1766512536029,8.10766985,123.34,123.3,8.45809407]
[1766512536321,7.76809407,123.33,123.28,8.45809407]
[1766512536532,28.37684448,123.34,123.3,8.45809407]
[1766512536722,8.10766985,123.34,123.3,8.45809407]
[1766512537520,0.61124558,123.35,123.32,7.76809407]
[1766512537709,14.8,123.37,123.32,8.46809407]
[1766512537917,14.8,123.37,123.33,7.76809407]
[1766512538131,14.8,123.37,123.33,8.46809407]
[1766512538328,22.90579833,123.37,123.33,0.7]
[1766512538627,0.61124558,123.39,123.35,8.46809407]
[1766512538812,14.8,123.4,123.35,7.76809407]
[1766512539017,8.10356405,123.41,123.37,7.76809407]
[1766512539328,22.90267147,123.42,123.38,8.46809407]
[1766512539628,7.76809407,123.39,123.32,0.7]
[1766512539829,7.76809407,123.38,123.32,7.76809407]
[1766512540133,23.17933965,123.39,123.34,0.7]
[1766512540334,36.13803813,123.37,123.31,7.76809407]
[1766512540524,7.76809407,123.35,123.3,8.46809407]
[1766512540719,14.8,123.36,123.32,0.7]
[1766512540921,8.37933965,123.35,123.3,8.46809407]
[1766512541116,7.76809407,123.35,123.3,8.46809407]
[1766512541733,23.17933965,123.36,123.31,0.7]
[1766512542235,7.76809407,123.35,123.3,8.46809407]
[1766512542730,8.10766985,123.34,123.3,0.7]
[1766512542912,8.10766985,123.34,123.3,8.46809407]
[1766512543631,8.10766985,123.34,123.3,0.7]
[1766512543928,8.10766985,123.34,123.29,15.87904516]
[1766512543929,8.10766985,123.34,123.28,16.57948295]
[1766512544134,7.76809407,123.33,123.28,16.57948295]
[1766512544434,7.76809407,123.33,123.29,0.7]
[1766512544612,7.76809407,123.34,123.29,15.87901336]
[1766512544812,7.76809407,123.34,123.3,0.7]
[1766512545127,15.87510663,123.35,123.3,0.7]
[1766512545329,15.87510663,123.35,123.31,0.7]
[1766512545515,8.10701256,123.35,123.31,0.7]
[1766512545720,15.87510663,123.35,123.31,0.7]
[1766512545932,30.67473102,123.36,123.31,0.7]
[1766512546418,8.71713784,123.37,123.31,7.76809407]
[1766512546619,31.28523191,123.37,123.32,0.7]
[1766512547032,23.51713784,123.37,123.33,0.7]
[1766512547234,7.76809407,123.36,123.31,0.7]
[1766512547420,0.61124558,123.4,123.34,8.46809407]
[1766512547735,7.76809407,123.39,123.34,0.7]
[1766512547911,7.76809407,123.38,123.33,0.7]
[1766512548440,31.30919059,123.4,123.34,0.7]
[1766512548643,7.76809407,123.39,123.34,0.7]
[1766512548935,15.8731354,123.38,123.34,0.7]
[1766512549107,22.90504133,123.38,123.34,0.7]
[1766512549306,31.28438098,123.38,123.34,0.7]
[1766512549910,15.87275611,123.39,123.35,0.7]
[1766512550112,8.10466204,123.39,123.35,0.7]
[1766512550836,15.87275611,123.39,123.35,0.7]
[1766512551025,8.10466204,123.39,123.35,0.7]
[1766512551222,15.87275611,123.39,123.35,0.7]
[1766512553564,8.10466204,123.39,123.35,0.7]
[1766512553721,7.76809407,123.37,123.3,0.7]
[1766512553916,7.76809407,123.37,123.32,0.7]
[1766512554341,7.76809407,123.37,123.32,7.76809407]
[1766512554548,7.76809407,123.38,123.34,0.7]
[1766512555418,15.87369852,123.38,123.34,0.7]
[1766512556342,8.10560445,123.38,123.34,0.7]
[1766512556522,15.87369852,123.38,123.34,0.7]
[1766512557144,36.13630185,123.38,123.34,0.7]
[1766512557330,28.36820778,123.38,123.34,0.7]
[1766512557539,50.93630185,123.38,123.34,0.7]
[1766512557940,7.76809407,123.36,123.32,0.7]
[1766512558146,7.76809407,123.37,123.33,0.7]
[1766512559526,43.16820778,123.38,123.3,8.11015157]
[1766512559724,15.875044,123.36,123.31,0.7]
[1766512559926,12.89695071,123.36,123.31,0.7]
[1766512560315,4.79000078,123.35,123.31,0.7]
[1766512561531,4.79000078,123.34,123.31,0.7]
[1766512561732,4.79000078,123.33,123.29,0.7]
[1766512562032,27.69710427,123.35,123.31,0.7]
[1766512562219,14.8,123.35,123.31,4.79000078]
[1766512562415,14.8,123.35,123.32,0.7]
[1766512563247,27.69713851,123.35,123.32,0.7]
[1766512563557,27.69713851,123.35,123.31,0.7]
[1766512563733,22.90713773,123.35,123.32,0.7]
[1766512563929,8.10663196,123.36,123.32,5.49000078]
[1766512564136,8.10663196,123.36,123.32,0.7]
[1766512564547,33.34360256,123.37,123.33,0.7]
[1766512564952,38.13360334,123.37,123.33,0.7]
[1766512565443,33.34360256,123.37,123.33,0.7]
[1766512565628,4.79000078,123.36,123.32,0.7]
[1766512566651,33.34360256,123.37,123.32,0.7]
[1766512566826,4.79000078,123.36,123.32,0.7]
[1766512567027,38.13360334,123.37,123.32,0.7]
[1766512567326,38.13360334,123.37,123.33,0.67]
[1766512567750,10.43767296,123.37,123.33,0.67]
[1766512567927,22.90531752,123.38,123.34,0.67]
[1766512568129,27.6953183,123.38,123.34,0.67]
[1766512568749,12.8953183,123.38,123.34,0.67]
[1766512569055,8.10531752,123.38,123.34,0.67]
[1766512569225,12.8953183,123.38,123.34,0.67]
[1766512569649,12.89462645,123.39,123.34,8.10741087]
[1766512569833,12.89241895,123.42,123.37,0.67]
[1766512570156,4.79000078,123.41,123.37,0.67]
[1766512570327,22.90241817,123.42,123.37,0.67]
[1766512570528,27.69241895,123.42,123.37,0.67]
[1766512570955,4.79000078,123.4,123.37,0.67]
[1766512571125,0.61124558,123.41,123.37,0.67]
[1766512571330,43.15845446,123.42,123.38,0.67]
[1766512571331,27.69241895,123.42,123.38,0.67]
[1766512571745,14.8,123.42,123.39,0.67]
[1766512572055,4.79000078,123.41,123.37,0.67]
[1766512572431,27.69264405,123.42,123.38,0.67]
[1766512572931,27.69264405,123.42,123.39,0.67]
[1766512574124,22.90264327,123.42,123.39,0.67]
[1766512574328,27.69264405,123.42,123.39,0.67]
[1766512574943,14.8,123.42,123.39,0.67]
[1766512575146,12.89152198,123.44,123.4,0.67]
[1766512575343,38.12919494,123.44,123.4,0.67]
[1766512575728,8.1004495,123.45,123.41,5.46000078]
[1766512575927,0.61124558,123.46,123.39,8.10425323]
[1766512576130,15.61124558,123.48,123.41,0.67]
[1766512576355,12.35054017,123.45,123.41,0.67]
[1766512576861,10.43767296,123.45,123.41,0.67]
[1766512577245,10.43767296,123.45,123.42,0.67]
[1766512577459,14.8,123.47,123.43,1.91286721]
[1766512577626,14.8,123.47,123.44,0.67]
[1766512577829,8.29870968,123.48,123.44,0.67]
[1766512578053,18.73617553,123.48,123.45,0.67]
[1766512578264,23.51591407,123.48,123.45,0.67]
[1766512578433,18.73617553,123.48,123.45,0.67]
[1766512579060,10.63767296,123.48,123.45,0.67]
[1766512579256,4.77973854,123.47,123.4,0.67]
[1766512579432,4.77973854,123.47,123.43,0.67]
[1766512580237,38.98240703,123.48,123.44,0.67]
[1766512580542,43.76214557,123.48,123.44,0.67]
[1766512580742,4.77973854,123.47,123.44,0.67]
[1766512581041,12.87919495,123.47,123.44,0.67]
[1766512582241,8.09945641,123.47,123.44,0.67]
[1766512583163,18.73643157,123.48,123.44,0.67]
[1766512583666,10.63767296,123.48,123.44,0.67]
[1766512584265,10.63767296,123.48,123.44,4.77973854]
[1766512584445,0.2,123.49,123.46,4.77973854]
[1766512584646,0.2,123.49,123.47,0.67]
[1766512584852,0.2,123.49,123.43,8.1015414]
[1766512585058,13.07762673,123.49,123.45,0.67]
[1766512585267,5.48973854,123.47,123.42,4.77973854]
[1766512585447,4.77973854,123.47,123.43,0.67]
[1766512586162,4.77973854,123.48,123.43,4.77973854]
[1766512586355,4.77973854,123.48,123.44,0.67]
[1766512587374,8.09904619,123.48,123.44,0.67]
[1766512587556,12.87878473,123.48,123.44,0.67]
[1766512588269,4.77973854,123.47,123.44,0.67]
[1766512589077,8.80904619,123.48,123.44,0.67]
[1766512589260,4.77973854,123.47,123.44,0.67]
[1766512591387,13.58878473,123.48,123.44,0.67]
[1766512593662,12.87901602,123.47,123.44,0.67]
[1766512594682,12.87821602,123.48,123.44,0.67]
[1766512594857,8.79847748,123.48,123.44,0.67]
[1766512595053,12.87821602,123.48,123.44,0.67]
[1766512595657,33.12440973,123.48,123.44,0.67]
[1766512596787,8.09847748,123.48,123.44,0.67]
[1766512596988,12.87821602,123.48,123.44,0.67]
[1766512597988,5.46973854,123.46,123.42,0.69]
[1766512598361,4.77973854,123.47,123.42,0.69]
[1766512599173,4.77973854,123.46,123.42,0.69]
[1766512600062,1.91266969,123.46,123.42,0.69]
[1766512600261,10.01251001,123.46,123.42,0.69]
[1766512600889,8.09984032,123.46,123.42,0.69]
[1766512601065,10.01251001,123.46,123.42,0.69]
[1766512602070,8.09984032,123.46,123.42,0.69]
[1766512602388,10.01251001,123.46,123.42,0.69]
[1766512603088,8.09984032,123.46,123.42,0.69]
[1766512603265,10.01251001,123.46,123.42,0.69]
[1766512603788,8.09984032,123.46,123.42,0.69]
[1766512603990,10.01251001,123.46,123.42,0.69]
[1766512608871,10.70251001,123.46,123.42,0.69]
[1766512610772,10.01196838,123.47,123.43,0.69]
[1766512610967,8.09847748,123.48,123.43,0.69]
[1766512611190,10.70114717,123.48,123.43,0.69]
[1766512611576,1.91266969,123.47,123.43,0.69]
[1766512611776,1.91266969,123.45,123.4,1.91266969]
[1766512611983,1.91266969,123.45,123.41,0.69]
[1766512612393,10.7029789,123.46,123.41,0.69]
[1766512613612,10.7029789,123.46,123.42,0.69]
[1766512613805,8.79030921,123.46,123.42,0.69]
[1766512614101,10.0129789,123.46,123.42,0.69]
[1766512614288,8.10030921,123.46,123.42,0.69]
[1766512616409,10.0129789,123.46,123.42,0.69]
[1766512616909,8.10030921,123.46,123.42,0.69]
[1766512617088,10.0129789,123.46,123.42,0.69]
[1766512617284,1.91266969,123.44,123.39,10.01690833]
[1766512617491,1.91266969,123.44,123.4,0.69]
[1766512617674,2.60266969,123.45,123.4,0.69]
[1766512618298,0.69,123.45,123.4,0.69]
[1766512618501,10.70356183,123.45,123.41,0.69]
[1766512620303,30.26467564,123.45,123.41,0.69]
[1766512620509,2.60266969,123.44,123.4,0.69]
[1766512621012,1.91266969,123.44,123.4,0.69]
[1766512621311,29.04200595,123.45,123.4,0.69]
[1766512621612,8.10145753,123.44,123.4,0.69]
[1766512621797,10.70412722,123.44,123.4,0.69]
[1766512621989,8.79145753,123.44,123.4,0.69]
[1766512622182,11.7813873,123.44,123.4,0.69]
[1766512622785,8.10044552,123.45,123.42,0.69]
[1766512623009,18.53776598,123.46,123.42,0.69]
[1766512624492,11.77909788,123.47,123.43,0.69]
[1766512624817,8.78916811,123.47,123.43,0.69]
[1766512624997,11.77909788,123.47,123.43,0.69]
[1766512625407,8.78916811,123.47,123.43,0.69]
[1766512625607,11.77909788,123.47,123.43,0.69]
[1766512625908,9.39995981,123.48,123.44,0.69]
[1766512626116,36.72767246,123.49,123.45,0.69]
[1766512626117,11.97803209,123.49,123.45,0.69]
[1766512626294,0.89,123.49,123.45,2.98992977]
[1766512626487,0.2,123.49,123.47,0.69]
[1766512627219,0.2,123.51,123.48,0.67]
[1766512627413,3.90992977,123.51,123.46,2.98992977]
[1766512627708,22.44422322,123.51,123.47,0.67]
[1766512627893,22.44422322,123.51,123.43,20.2543952]
[1766512627894,3.70992977,123.49,123.44,0.67]
[1766512628415,54.38681504,123.51,123.44,0.67]
[1766512628416,3.70992977,123.48,123.44,0.67]
[1766512628912,3.70992977,123.47,123.43,0.67]
[1766512629121,0.72,123.47,123.43,0.67]
[1766512629319,3.70992977,123.47,123.43,0.67]
[1766512629615,0.72,123.47,123.43,0.67]
[1766512629813,11.80932582,123.47,123.43,0.67]
[1766512630415,26.60865822,123.48,123.43,0.67]
[1766512630607,2.98992977,123.47,123.43,0.67]
[1766512631311,0.72,123.47,123.43,0.67]
[1766512631494,2.98992977,123.46,123.43,0.67]
[1766512631692,3.70992977,123.44,123.39,0.67]
[1766512632005,2.98992977,123.42,123.37,0.67]
[1766512632713,2.98992977,123.42,123.38,0.67]
[1766512633221,2.98992977,123.42,123.38,8.10494728]
[1766512633425,2.98992977,123.42,123.39,0.67]
[1766512634223,11.81168785,123.43,123.39,0.67]
[1766512634721,3.70992977,123.43,123.39,0.67]
[1766512637202,0.72,123.43,123.4,0.67]
[1766512637705,3.70992977,123.43,123.4,0.67]
[1766512637906,11.09141075,123.44,123.4,0.67]
[1766512638116,11.81141075,123.44,123.4,0.67]
[1766512641829,8.82148098,123.44,123.4,0.67]
[1766512642032,11.81141075,123.44,123.4,0.67]
[1766512642527,3.70992977,123.44,123.4,0.67]
[1766512642725,37.04822597,123.45,123.41,0.67]
[1766512643031,22.24822597,123.45,123.41,0.67]
[1766512643416,11.08999225,123.46,123.42,0.67]
[1766512643804,11.80999225,123.46,123.42,0.67]
[1766512644226,2.98992977,123.45,123.42,0.67]
[1766512645625,2.98992977,123.43,123.39,0.67]
[1766512645805,2.98992977,123.42,123.39,0.67]
[1766512646228,3.70992977,123.43,123.39,0.67]
[1766512646905,0.72,123.44,123.39,11.09427794]
[1766512647109,11.09079601,123.45,123.4,0.67]
[1766512647319,11.81079601,123.45,123.4,0.67]
[1766512647721,3.70992977,123.43,123.38,0.67]
[1766512647907,3.70992977,123.43,123.39,0.67]
[1766512648129,2.98992977,123.42,123.39,0.67]
[1766512649132,8.82180853,123.43,123.39,0.67]
[1766512649316,3.70992977,123.43,123.39,8.77433058]
[1766512649630,0.72,123.43,123.4,0.67]
[1766512649838,3.70992977,123.43,123.4,0.67]
[1766512652041,8.7119402,123.45,123.4,0.67]
[1766512652243,3.70992977,123.44,123.4,0.67]
[1766512652612,2.98992977,123.43,123.4,0.67]
[1766512653233,3.68992977,123.42,123.38,8.79459318]
[1766512653412,3.68992977,123.42,123.38,8.10459318]
[1766512653613,2.98992977,123.39,123.36,0.69]
[1766512653833,0.7,123.4,123.36,0.69]
[1766512654041,2.98992977,123.39,123.36,0.69]
[1766512654613,0.7,123.4,123.36,0.69]
[1766512654916,2.98992977,123.39,123.36,0.69]
[1766512656114,0.7,123.4,123.36,0.69]
[1766512656315,2.98992977,123.39,123.36,0.69]
[1766512656809,2.98992977,123.38,123.35,0.7]
[1766512657246,2.98992977,123.37,123.34,15.5]
[1766512657539,3.66992977,123.38,123.34,15.5]
[1766512657738,29.65439885,123.4,123.35,0.7]
[1766512657914,2.98992977,123.39,123.35,0.7]
[1766512658115,11.09437616,123.39,123.35,0.7]
[1766512658316,11.77437616,123.39,123.35,0.7]
[1766512658517,8.78444639,123.39,123.35,0.7]
[1766512658724,11.77437616,123.39,123.35,0.7]
[1766512659122,8.78444639,123.39,123.35,0.7]
[1766512659324,11.77437616,123.39,123.35,0.7]
[1766512660726,3.66992977,123.39,123.35,0.7]
[1766512660930,3.66992977,123.39,123.36,0.7]
[1766512662052,2.98992977,123.39,123.36,0.7]
[1766512662446,8.78395822,123.4,123.36,0.7]
[1766512662651,2.98992977,123.39,123.36,0.7]
[1766512663431,8.7827212,123.42,123.37,0.7]
[1766512663636,11.77265097,123.42,123.38,0.7]
[1766512664946,3.66992977,123.4,123.36,0.7]
[1766512665347,2.98992977,123.39,123.36,0.7]
[1766512665942,2.98992977,123.38,123.35,0.7]
[1766512666445,3.66992977,123.39,123.35,0.7]
[1766512667146,11.7745455,123.39,123.35,0.7]
[1766512667935,3.66992977,123.39,123.35,0.7]
[1766512668138,11.77443534,123.39,123.35,0.7]
[1766512668836,3.66992977,123.39,123.35,0.7]
[1766512669028,11.77458948,123.39,123.35,0.7]
[1766512671551,2.98992977,123.38,123.35,0.7]
[1766512671751,2.98992977,123.36,123.31,0.7]
[1766512672045,2.98992977,123.36,123.32,0.7]
[1766512672348,3.66992977,123.36,123.32,0.7]
[1766512672529,2.98992977,123.35,123.32,0.7]
[1766512673050,3.66992977,123.35,123.32,0.7]
[1766512673445,2.98992977,123.34,123.32,0.7]
[1766512673845,2.98992977,123.35,123.32,0.7]
[1766512674347,3.66992977,123.36,123.32,0.7]
[1766512676126,11.09590668,123.37,123.33,0.7]
[1766512676333,2.98992977,123.37,123.33,0.7]
[1766512676649,3.66992977,123.37,123.33,0.7]
[1766512676952,28.22760273,123.38,123.33,0.7]
[1766512677249,28.90760273,123.38,123.33,0.7]
[1766512677551,2.98992977,123.37,123.33,0.7]
[1766512678246,2.98992977,123.37,123.32,2.98992977]
[1766512678438,3.66992977,123.37,123.33,0.7]
[1766512679646,3.66992977,123.37,123.33,8.80827446]
[1766512680346,3.66992977,123.37,123.34,0.7]
[1766512681455,25.23767296,123.38,123.32,2.98992977]
[1766512681630,28.90760273,123.38,123.34,0.7]
[1766512681826,10.43767296,123.38,123.34,2.98992977]
[1766512682049,4.28117535,123.39,123.36,0.7]
[1766512682050,8.10466882,123.39,123.36,0.7]
[1766512682555,3.66992977,123.41,123.37,3.68992977]
[1766512683164,4.90785349,123.45,123.41,0.7]
[1766512683454,4.22785349,123.45,123.42,0.7]
[1766512683659,11.77014126,123.46,123.42,0.7]
[1766512684029,10.69301094,123.46,123.42,0.7]
[1766512684256,1.91279945,123.45,123.42,0.7]
[1766512684428,10.01344015,123.45,123.42,0.7]
[1766512686253,8.1006407,123.45,123.42,0.7]
[1766512687155,13.07047241,123.47,123.43,0.71]
[1766512687336,1.91279945,123.46,123.43,0.71]
[1766512688048,19.25728322,123.47,123.43,0.71]
[1766512688251,21.17008267,123.47,123.43,0.71]
[1766512688668,10.73240971,123.47,123.43,0.71]
[1766512688961,8.81961026,123.47,123.43,0.71]
[1766512689143,10.73240971,123.47,123.43,0.71]
[1766512689454,0.72,123.47,123.43,1.91279945]
[1766512689759,33.33575467,123.49,123.44,0.71]
[1766512689929,35.24855412,123.49,123.45,2.62279945]
[1766512690329,0.72,123.5,123.45,2.62279945]
[1766512690330,10.73009407,123.5,123.45,2.62279945]
[1766512690530,10.73009407,123.5,123.46,0.71]
[1766512691248,8.81729462,123.5,123.46,0.71]
[1766512691760,1.91279945,123.49,123.46,0.71]
[1766512692763,8.81729462,123.5,123.46,0.71]
[1766512692764,10.73009407,123.5,123.46,0.71]
[1766512694165,8.09729462,123.5,123.46,0.71]
[1766512694360,10.01009407,123.5,123.46,0.71]
[1766512694667,10.73009407,123.5,123.46,0.71]
[1766512696368,10.73009407,123.5,123.46,2.62279945]
[1766512696564,10.73009407,123.5,123.46,0.71]
[1766512697761,10.73009407,123.5,123.46,2.62279945]
[1766512698452,8.81729462,123.5,123.46,2.62279945]
[1766512699173,0.72,123.49,123.45,2.62279945]
[1766512699976,0.72,123.49,123.44,0.71]
[1766512700142,0.72,123.47,123.44,0.71]
[1766512700341,0.72,123.44,123.39,0.71]
[1766512700541,2.63279945,123.43,123.39,0.71]
[1766512700746,13.07047241,123.42,123.38,0.71]
[1766512701169,21.17291203,123.42,123.38,0.71]
[1766512701364,2.63279945,123.41,123.36,24.81892247]
[1766512701557,2.63279945,123.41,123.37,0.71]
[1766512703057,0.72,123.41,123.38,0.71]
[1766512703870,2.63279945,123.41,123.38,0.71]
[1766512706272,0.72,123.41,123.38,0.71]
[1766512706955,21.17291203,123.42,123.38,0.71]
[1766512707360,0.72,123.41,123.38,0.71]
[1766512707963,2.63279945,123.41,123.36,10.01890014]
[1766512708164,18.54011258,123.42,123.37,0.71]
[1766512708165,2.63279945,123.4,123.37,0.71]
[1766512709949,10.01596029,123.41,123.37,0.71]
[1766512710151,10.73596029,123.41,123.37,0.71]
[1766512712777,2.63279945,123.41,123.37,2.62279945]
[1766512712985,1.91279945,123.41,123.38,0.71]
[1766512713281,10.43767296,123.4,123.38,0.71]
[1766512713456,2.63279945,123.42,123.38,0.71]
[1766512714470,0.72,123.42,123.38,0.71]
[1766512714786,2.63279945,123.42,123.38,0.71]
[1766512715861,18.5396403,123.43,123.4,0.65]
[1766512716288,21.15243975,123.43,123.4,0.65]
[1766512717584,25.50411867,123.44,123.4,0.65]
[1766512717973,23.59131922,123.44,123.4,2.56279945]
[1766512718190,25.50411867,123.44,123.4,2.56279945]
[1766512718886,24.81411867,123.44,123.4,0.65]
[1766512719092,2.60279945,123.43,123.39,0.67]
[1766512719660,10.7045994,123.43,123.39,0.67]
[1766512719965,13.04047241,123.41,123.35,20.2665535]
[1766512720275,1.91279945,123.4,123.36,0.67]
[1766512721174,21.14357095,123.41,123.36,10.01881467]
[1766512721372,21.14357095,123.41,123.37,0.67]
[1766512723297,1.91279945,123.4,123.37,0.67]
[1766512723702,2.60279945,123.39,123.35,0.67]
[1766512723870,1.91279945,123.38,123.35,0.67]
[1766512724783,2.60279945,123.39,123.35,0.67]
[1766512724979,10.01722296,123.39,123.35,0.67]
[1766512727097,2.60279945,123.38,123.34,0.67]
[1766512727301,10.43767296,123.36,123.32,0.67]
[1766512727503,12.35047241,123.36,123.32,0.67]
[1766512727673,10.43767296,123.36,123.33,0.67]
[1766512728396,12.35047241,123.36,123.33,0.67]
[1766512728601,11.12767296,123.35,123.31,0.67]
[1766512728893,11.12767296,123.35,123.31,2.58279945]
[1766512729198,19.23489118,123.35,123.32,0.67]
[1766512729376,18.54489118,123.35,123.32,0.67]
[1766512730801,0.69,123.34,123.3,0.67]
[1766512730973,1.91279945,123.33,123.3,0.67]
[1766512731390,8.79807545,123.34,123.3,0.67]
[1766512731607,10.7108749,123.34,123.3,0.67]
[1766512732203,2.60279945,123.34,123.3,0.67]
[1766512732578,0.69,123.34,123.3,0.67]
[1766512732780,25.23767296,123.35,123.32,0.67]
[1766512733084,10.70936287,123.36,123.32,2.58279945]
[1766512733085,10.43767296,123.34,123.32,2.58279945]
[1766512733485,10.43767296,123.34,123.32,0.67]
[1766512733690,10.43767296,123.34,123.29,0.1]
[1766512733898,2.60279945,123.33,123.29,0.77]
[1766512734204,0.69,123.33,123.3,0.67]
[1766512734607,20.45829693,123.34,123.3,0.67]
[1766512734905,20.45829693,123.34,123.29,0.1]
[1766512734906,2.60279945,123.32,123.29,0.1]
[1766512735910,2.60279945,123.32,123.29,0.77]
[1766512736285,1.91279945,123.33,123.29,0.77]
[1766512736589,0.69,123.33,123.29,2.68279945]
[1766512738016,1.91279945,123.31,123.29,0.1]
[1766512738308,13.04047241,123.3,123.27,0.67]
[1766512738496,13.04047241,123.3,123.26,0.1]
[1766512738706,13.04047241,123.3,123.26,0.77]
[1766512739211,0.69,123.3,123.26,2.01279945]
[1766512739403,0.69,123.3,123.27,0.67]
[1766512740399,2.60279945,123.3,123.27,0.67]
[1766512740578,1.91279945,123.28,123.26,0.1]
[1766512740902,0.69,123.29,123.26,0.1]
[1766512741097,2.60279945,123.29,123.26,0.1]
[1766512741721,1.91279945,123.28,123.26,0.1]
[1766512742005,2.60279945,123.27,123.24,0.1]
[1766512742602,0.69,123.27,123.24,0.77]
[1766512743108,10.71472555,123.28,123.24,0.77]
[1766512743331,1.91279945,123.25,123.2,0.67]
[1766512743494,1.91279945,123.25,123.2,1.91279945]
[1766512743686,2.60279945,123.26,123.22,0.67]
[1766512744216,3.68856192,123.26,123.22,0.67]
[1766512744402,2.99856192,123.25,123.22,0.67]
[1766512744817,20.28145559,123.27,123.2,8.11668442]
[1766512744818,0.69,123.28,123.23,2.99856192]
[1766512745116,3.68856192,123.28,123.23,3.66856192]
[1766512745414,2.99856192,123.27,123.23,3.66856192]
[1766512745617,3.68856192,123.27,123.23,0.67]
[1766512746705,11.80098239,123.27,123.23,0.67]
[1766512747894,0.71,123.26,123.22,2.99856192]
[1766512748096,0.71,123.26,123.22,0.68]
[1766512748292,3.70856192,123.25,123.2,11.79524286]
[1766512748513,3.70856192,123.25,123.21,0.68]
[1766512748738,11.82230758,123.25,123.21,0.68]
[1766512750004,8.11309813,123.26,123.21,0.68]
[1766512750201,3.70856192,123.25,123.21,0.68]
[1766512750401,0.71,123.21,123.16,0.68]
[1766512750604,2.99856192,123.2,123.16,0.68]
[1766512750809,2.99856192,123.2,123.16,8.79948117]
[1766512751000,18.52856192,123.22,123.18,0.68]
[1766512751823,15.53,123.22,123.18,0.68]
[1766512752002,26.64418867,123.22,123.18,0.68]
[1766512752202,2.99856192,123.21,123.12,56.24108842]
[1766512752420,2.99856192,123.2,123.16,0.68]
[1766512753110,3.70856192,123.21,123.16,11.11780662]
[1766512753315,26.64418867,123.22,123.18,0.68]
[1766512753631,2.99856192,123.2,123.16,0.68]
[1766512753927,3.70856192,123.21,123.17,0.68]
[1766512754620,11.82501525,123.21,123.17,0.68]
[1766512754823,8.82645333,123.21,123.17,0.68]
[1766512755025,11.82501525,123.21,123.17,0.68]
[1766512755828,14.14623488,123.21,123.17,0.68]
[1766512756925,10.43767296,123.21,123.17,0.68]
[1766512757110,2.99856192,123.22,123.19,0.68]
[1766512757310,2.99856192,123.2,123.16,0.68]
[1766512757522,2.99856192,123.19,123.16,0.68]
[1766512757711,3.70856192,123.18,123.12,0.68]
[1766512757912,2.99856192,123.17,123.13,0.68]
[1766512758243,3.70856192,123.18,123.13,3.67856192]
[1766512758408,3.70856192,123.18,123.14,0.68]
[1766512758934,2.99856192,123.17,123.14,0.68]
[1766512759232,11.82696886,123.18,123.14,0.68]
[1766512759528,0.71,123.18,123.14,0.68]
[1766512759738,3.70856192,123.18,123.14,0.68]
[1766512759936,11.82677776,123.18,123.14,0.68]
[1766512761282,2.99856192,123.18,123.15,0.68]
[1766512761414,3.70856192,123.18,123.15,0.68]
[1766512761619,3.70856192,123.18,123.13,11.11981541]
[1766512761846,3.70856192,123.18,123.13,3.67856192]
[1766512762369,3.70856192,123.18,123.14,0.68]
[1766512762823,0.71,123.18,123.14,0.68]
[1766512763021,11.82705016,123.18,123.14,0.68]
[1766512763823,2.99856192,123.17,123.1,0.1]
[1766512764030,0.71,123.12,123.07,0.68]
[1766512764342,2.99856192,123.09,123.05,4.89875328]
[1766512764531,2.99856192,123.07,123.04,4.61994037]
[1766512765054,11.12554319,123.05,122.98,15.5]
[1766512765267,3.70856192,123.01,122.95,0.68]
[1766512765560,0.71,123.01,122.97,8.13202511]